[Event "African Online-ch O50-Seniors 2021"]
[Site "Online"]
[Date "2021.02.01"]
[Round "3.5"]
[White "Kpodo, Evans Mawuko"]
[Black "Mukabi, John"]
[Result "0-1"]
[ECO "B45"]
[WhiteElo "1654"]
[BlackElo "1820"]
[Annotator "NA RC"]
[PlyCount "82"]
[EventDate "2021.02.01"]
[EventType "swiss"]
[EventCountry "NET"]
[SourceTitle "playchess.com"]
[Source "ChessBase"]
[SourceQuality "1"]
[TimeControl "1500+10"]

1. e4 {[%emt 0:00:00]} c5 {[%emt 0:00:11]} 2. Nf3 {[%emt 0:17:46]} e6 {[%emt 0:00:13]} 3. d4 {[%emt 0:00:47]} cxd4 {[%emt 0:00:07]} 4. Nxd4 {[%emt 0:00:44]} Nc6 {[%emt 0:00:09]} 5. Be3 {[%emt 0:00:06]} Nf6 {[%emt 0:00:10]} 6. Nc3 {[%emt 0:00:17]} Bb4 {[%emt 0:00:11]} 7. f3 {[%emt 0:00:48]} d5 {[%emt 0:00:43]} 8. Nxc6 {[%emt 0:00:28]} Bxc3+ {[%emt 0:00:20]} 9. bxc3 {[%emt 0:00:04]} bxc6 {[%emt 0:00:04]} 10. e5 {[%emt 0:00:08]} Nd7 {[%emt 0:00:56]} 11. Bf4 {[%emt 0:00:14]} Qb6 {[%emt 0:01:03]} 12. Bg3 {[%emt 0:01:25]} Qe3+ {[%emt 0:00:22]} 13. Be2 {[%emt 0:00:10]} Qxc3+ {[%emt 0:00:09]} ({Not} 13... Nxe5 14. Qd4 $11) 14. Kf1 {[%emt 0:00:04]} O-O {[%emt 0:02:00]} 15. Rb1 {[%emt 0:00:13]} Rb8 {[%emt 0:00:39]} 16. Rxb8 {[%emt 0:00:43]} Nxb8 {[%emt 0:00:06]} 17. h3 {[%emt 0:00:05]} Nd7 {[%emt 0:00:20]} 18. Kg1 {[%emt 0:00:06]} Nxe5 {[%emt 0:00:27]} 19. Be1 {[%emt 0:00:17]} Qa3 {[%emt 0:01:47]} 20. Qd4 {[%emt 0:00:15]} Ng6 {[%emt 0:00:19]} 21. Bb4 {[%emt 0:00:13]} Qc1+ {[%emt 0:06:01]} 22. Kh2 {[%emt 0:00:05]} Qxc2 {[%emt 0:02:36]} 23. Bd3 {[%emt 0:00:06]} Qa4 {[%emt 0:00:30]} 24. Bxg6 {[%emt 0:01:00]} hxg6 {[%emt 0:00:20]} 25. a3 {[%emt 0:00:31]} Re8 {[%emt 0:00:16]} 26. Qb2 {[%emt 0:00:10]} Ba6 $19 {[%emt 0:00:48]} 27. Bd6 {[%emt 0:00:36]} Qb5 {[%emt 0:00:22]} 28. Qd4 {[%emt 0:00:23]} Qb7 {[%emt 0:02:13]} 29. Bc5 {[%emt 0:00:10]} e5 {[%emt 0:00:13]} 30. Qg4 {[%emt 0:00:29]} Qc7 {[%emt 0:00:25]} 31. Qb4 {[%emt 0:00:09]} e4+ {[%emt 0:00:30]} 32. Bd6 {[%emt 0:00:04]} Qb6 {[%emt 0:00:06]} 33. Qe1 {[%emt 0:00:32]} e3 {[%emt 0:00:10]} 34. Qc1 {[%emt 0:00:21]} d4 {[%emt 0:00:49]} 35. Bc5 {[%emt 0:00:06]} Qc7+ {[%emt 0:00:07]} 36. g3 {[%emt 0:00:02]} Qe5 {[%emt 0:00:25]} 37. f4 {[%emt 0:00:13]} Qe4 {[%emt 0:00:11]} 38. Re1 {[%emt 0:00:50]} e2 {[%emt 0:00:13]} 39. Qd2 {[%emt 0:00:11]} Bd3 {[%emt 0:00:13]} 40. Rg1 {[%emt 0:00:32]} e1=Q {[%emt 0:02:14]} 41. Rxe1 {[%emt 0:00:10]} Qxe1 {[%emt 0:00:05]} 0-1

[Event "African Online-ch O50-Seniors 2021"]
[Site "Online"]
[Date "2021.02.01"]
[Round "4.3"]
[White "Fernandes, Luis De Pina"]
[Black "Ohlson, Cecil"]
[Result "1-0"]
[ECO "C63"]
[WhiteElo "1601"]
[BlackElo "1652"]
[Annotator "NA RC"]
[PlyCount "91"]
[EventDate "2021.02.01"]
[EventType "swiss"]
[EventCountry "NET"]
[SourceTitle "playchess.com"]
[Source "ChessBase"]
[SourceQuality "1"]
[TimeControl "1500+10"]

1. e4 {[%emt 0:00:00]} e5 {[%emt 0:00:04]} 2. Nf3 {[%emt 0:00:05]} Nc6 {[%emt 0:00:03]} 3. Bb5 {[%emt 0:00:04]} f5 {[%emt 0:00:03]} 4. d3 {[%emt 0:00:36]} fxe4 {[%emt 0:00:03]} 5. dxe4 {[%emt 0:00:03]} Nf6 {[%emt 0:00:03]} 6. Nc3 {[%emt 0:00:08]} Bb4 {[%emt 0:00:30]} 7. Bd2 {[%emt 0:02:14]} d6 {[%emt 0:01:06]} 8. Bd3 {[%emt 0:01:23]} Bg4 {[%emt 0:00:28]} 9. h3 {[%emt 0:00:10]} Bh5 {[%emt 0:00:04]} 10. a3 {[%emt 0:00:26]} Ba5 {[%emt 0:00:36]} 11. b4 {[%emt 0:00:06]} Bb6 {[%emt 0:00:05]} 12. O-O {[%emt 0:00:04]} O-O {[%emt 0:01:07]} 13. Be2 {[%emt 0:01:13]} Bxf3 {[%emt 0:02:13]} 14. Bxf3 {[%emt 0:00:09]} Nd4 {[%emt 0:00:03]} 15. Na4 {[%emt 0:02:20]} c6 {[%emt 0:02:05]} 16. Nxb6 {[%emt 0:00:13]} axb6 {[%emt 0:00:12]} 17. c3 {[%emt 0:00:05]} Nxf3+ {[%emt 0:01:17]} 18. Qxf3 {[%emt 0:00:04]} d5 {[%emt 0:00:05]} 19. Bg5 {[%emt 0:02:47]} dxe4 {[%emt 0:00:27]} 20. Qe3 {[%emt 0:01:13]} Nd5 {[%emt 0:02:23]} 21. Qg3 {[%emt 0:04:55]} Qe8 {[%emt 0:00:41]} 22. Rfe1 {[%emt 0:01:51]} Qg6 {[%emt 0:02:19]} 23. c4 {[%emt 0:02:18]} e3 {[%emt 0:03:34]} 24. Bxe3 {[%emt 0:00:39]} Qxg3 {[%emt 0:00:04]} 25. fxg3 {[%emt 0:00:04]} Nxe3 {[%emt 0:00:07]} 26. Rxe3 {[%emt 0:00:03]} Rad8 {[%emt 0:01:38]} 27. Ra2 {[%emt 0:00:27]} Rd1+ {[%emt 0:00:12]} 28. Kh2 {[%emt 0:00:03]} Rff1 {[%emt 0:00:12]} 29. g4 {[%emt 0:00:04]} Rc1 {[%emt 0:00:24]} 30. Rxe5 {[%emt 0:00:13]} Rh1+ {[%emt 0:00:27]} 31. Kg3 {[%emt 0:00:04]} Rc3+ {[%emt 0:00:02]} 32. Kh4 {[%emt 0:00:37]} Rxc4 {[%emt 0:00:04]} 33. Re7 {[%emt 0:00:10]} Rcc1 {[%emt 0:02:19]} 34. Rf2 {[%emt 0:00:06]} h6 {[%emt 0:00:14]} 35. Rxb7 {[%emt 0:00:20]} Rhf1 {[%emt 0:00:05]} 36. Rxf1 {[%emt 0:00:04]} Rxf1 {[%emt 0:00:03]} 37. Rxb6 {[%emt 0:00:01]} Ra1 {[%emt 0:00:05]} 38. Ra6 {[%emt 0:00:04]} Kf7 {[%emt 0:00:13]} 39. a4 {[%emt 0:00:02]} Ra2 {[%emt 0:00:15]} 40. Kg3 {[%emt 0:00:07]} Ke7 {[%emt 0:00:11]} 41. a5 {[%emt 0:00:03]} Kd6 {[%emt 0:00:18]} 42. Ra7 {[%emt 0:00:15]} Ra4 {[%emt 0:00:05]} 43. Rb7 {[%emt 0:00:07]} c5 {[%emt 0:00:09]} 44. bxc5+ {[%emt 0:00:03]} Kxc5 {[%emt 0:00:02]} 45. Rxg7 {[%emt 0:00:06]} Rxa5 {[%emt 0:00:04]} 46. Rg6 {[%emt 0:00:02]} 1-0

[Event "African Online-ch O50-Seniors 2021"]
[Site "Online"]
[Date "2021.02.01"]
[Round "4.4"]
[White "Molapo, Joang"]
[Black "Belabbas, Haddouche"]
[Result "1-0"]
[ECO "E91"]
[WhiteElo "1607"]
[BlackElo "1776"]
[Annotator "NA RC"]
[PlyCount "60"]
[EventDate "2021.02.01"]
[EventType "swiss"]
[EventCountry "NET"]
[SourceTitle "playchess.com"]
[Source "ChessBase"]
[SourceQuality "1"]
[TimeControl "1500+10"]

1. d4 {[%emt 0:00:00]} Nf6 {[%emt 0:00:10]} 2. c4 {[%emt 0:00:11]} g6 {[%emt 0:00:06]} 3. Nc3 {[%emt 0:00:04]} Bg7 {[%emt 0:00:04]} 4. e4 {[%emt 0:00:04]} d6 {[%emt 0:00:02]} 5. Nf3 {[%emt 0:00:04]} O-O {[%emt 0:00:03]} 6. Be2 {[%emt 0:00:02]} Nbd7 {[%emt 0:00:06]} 7. O-O {[%emt 0:00:06]} c6 {[%emt 0:01:42]} 8. e5 {[%emt 0:01:52]} dxe5 {[%emt 0:00:30]} 9. dxe5 {[%emt 0:00:05]} Ng4 {[%emt 0:00:02]} 10. e6 {[%emt 0:00:06]} fxe6 {[%emt 0:00:10]} 11. Ng5 {[%emt 0:00:04]} Ngf6 {[%emt 0:05:57]} 12. Nxe6 {[%emt 0:00:20]} Qb6 {[%emt 0:00:27]} 13. Nxf8 {[%emt 0:00:07]} Nxf8 {[%emt 0:00:06]} 14. h3 {[%emt 0:00:22]} Bf5 {[%emt 0:00:24]} 15. Qb3 {[%emt 0:00:12]} Qc7 {[%emt 0:00:12]} 16. Be3 {[%emt 0:00:18]} e5 {[%emt 0:00:44]} 17. Rad1 {[%emt 0:00:38]} Be6 {[%emt 0:00:47]} 18. Qb4 {[%emt 0:00:20]} Ne8 {[%emt 0:00:53]} 19. Rd2 {[%emt 0:00:39]} Nd7 {[%emt 0:00:56]} 20. Rfd1 {[%emt 0:00:14]} Bf8 {[%emt 0:01:48]} 21. Qa4 {[%emt 0:00:06]} Nd6 {[%emt 0:01:30]} 22. g4 {[%emt 0:01:49]} a6 {[%emt 0:02:23]} 23. c5 {[%emt 0:00:43]} Nf7 {[%emt 0:01:14]} 24. Bc4 {[%emt 0:01:16]} Bd5 {[%emt 0:04:23]} 25. Nxd5 {[%emt 0:01:44]} cxd5 {[%emt 0:00:16]} 26. Bxd5 {[%emt 0:00:12]} Nf6 {[%emt 0:01:18]} 27. Bb3 {[%emt 0:00:42]} Kg7 {[%emt 0:00:46]} 28. Rd7 {[%emt 0:00:23]} Nxd7 {[%emt 0:00:37]} 29. Rxd7 {[%emt 0:00:04]} Qc6 {[%emt 0:00:36]} 30. Rxf7+ {[%emt 0:00:10]} Kh8 {[%emt 0:00:02]} 1-0

[Event "African Online-ch O50-Seniors 2021"]
[Site "Online"]
[Date "2021.02.01"]
[Round "5.3"]
[White "Ohlson, Cecil"]
[Black "Molapo, Joang"]
[Result "1/2-1/2"]
[ECO "B20"]
[WhiteElo "1652"]
[BlackElo "1607"]
[Annotator "NA RC"]
[PlyCount "148"]
[EventDate "2021.02.01"]
[EventType "swiss"]
[EventCountry "NET"]
[SourceTitle "playchess.com"]
[Source "ChessBase"]
[SourceQuality "1"]
[TimeControl "1500+10"]

1. e4 {[%emt 0:00:00]} c5 {[%emt 0:00:06]} 2. d3 {[%emt 0:00:03]} d6 {[%emt 0:00:07]} 3. f4 {[%emt 0:00:02]} Nc6 {[%emt 0:00:08]} 4. Be2 {[%emt 0:00:03]} Nf6 {[%emt 0:00:22]} 5. Nf3 {[%emt 0:00:02]} e6 {[%emt 0:00:12]} 6. O-O {[%emt 0:00:03]} Be7 {[%emt 0:00:04]} 7. Qe1 {[%emt 0:00:02]} O-O {[%emt 0:00:29]} 8. Ng5 {[%emt 0:00:05]} Nd4 {[%emt 0:00:20]} 9. Bd1 {[%emt 0:00:03]} h6 {[%emt 0:00:18]} 10. Nh3 {[%emt 0:00:03]} Qc7 {[%emt 0:00:22]} 11. c3 {[%emt 0:00:03]} Nc6 {[%emt 0:00:06]} 12. Qg3 {[%emt 0:00:58]} Kh8 {[%emt 0:00:29]} 13. Nd2 {[%emt 0:01:36]} b5 {[%emt 0:00:11]} 14. a4 {[%emt 0:00:36]} Rb8 {[%emt 0:00:10]} 15. axb5 {[%emt 0:00:12]} Rxb5 {[%emt 0:00:07]} 16. Nc4 {[%emt 0:00:56]} Nh7 {[%emt 0:01:00]} 17. Ba4 {[%emt 0:01:22]} Rb7 {[%emt 0:00:12]} 18. Bxc6 {[%emt 0:00:05]} Qxc6 {[%emt 0:00:16]} 19. Na5 {[%emt 0:01:13]} Qa6 {[%emt 0:00:10]} 20. Bd2 {[%emt 0:00:10]} Rb8 {[%emt 0:00:14]} 21. c4 {[%emt 0:00:41]} Qb6 {[%emt 0:01:07]} 22. Bc3 {[%emt 0:01:59]} e5 {[%emt 0:00:36]} 23. fxe5 {[%emt 0:00:14]} Bxh3 {[%emt 0:00:42]} 24. Qxh3 {[%emt 0:00:19]} dxe5 {[%emt 0:00:10]} 25. Bxe5 {[%emt 0:00:07]} Rbd8 {[%emt 0:00:10]} 26. Qg3 {[%emt 0:00:15]} Bf6 {[%emt 0:00:06]} 27. Bc7 {[%emt 0:00:14]} Qxb2 {[%emt 0:02:59]} 28. e5 {[%emt 0:00:20]} Qd4+ {[%emt 0:00:34]} 29. Kh1 {[%emt 0:01:38]} Bh4 {[%emt 0:00:51]} 30. Qf4 {[%emt 0:00:58]} Qxf4 {[%emt 0:00:23]} 31. Rxf4 {[%emt 0:00:08]} Bg5 {[%emt 0:00:05]} 32. Bxd8 {[%emt 0:00:51]} Bxf4 {[%emt 0:00:05]} 33. Nc6 {[%emt 0:00:03]} Kg8 {[%emt 0:00:56]} 34. Rxa7 {[%emt 0:01:49]} Ng5 {[%emt 0:01:18]} 35. g3 {[%emt 0:02:19]} Be3 {[%emt 0:00:18]} 36. Ne7+ {[%emt 0:02:17]} Kh7 {[%emt 0:00:33]} 37. Bc7 {[%emt 0:00:12]} Ne6 {[%emt 0:00:21]} 38. Bd6 {[%emt 0:00:02]} Rd8 {[%emt 0:02:05]} 39. Nf5 {[%emt 0:00:20]} Bd2 {[%emt 0:00:43]} 40. g4 {[%emt 0:01:23]} Kg8 {[%emt 0:02:51]} 41. Ra2 {[%emt 0:01:39]} Bc3 {[%emt 0:00:46]} 42. Rf2 {[%emt 0:00:09]} f6 {[%emt 0:01:20]} 43. Ne7+ {[%emt 0:01:18]} Kf7 {[%emt 0:00:08]} 44. Nc6 {[%emt 0:00:15]} Rc8 {[%emt 0:00:54]} 45. Na7 {[%emt 0:00:10]} Ra8 {[%emt 0:00:56]} 46. Nb5 {[%emt 0:00:04]} Ba1 {[%emt 0:00:22]} 47. Nc7 {[%emt 0:00:34]} Nxc7 {[%emt 0:00:18]} 48. Bxc7 {[%emt 0:00:03]} Bd4 {[%emt 0:00:12]} 49. Rf3 {[%emt 0:00:11]} Ra2 {[%emt 0:01:11]} 50. h4 {[%emt 0:00:17]} Re2 {[%emt 0:00:17]} 51. exf6 {[%emt 0:00:07]} gxf6 {[%emt 0:00:11]} 52. g5 {[%emt 0:00:07]} hxg5 {[%emt 0:00:05]} 53. hxg5 {[%emt 0:00:02]} Re1+ {[%emt 0:00:04]} 54. Kh2 {[%emt 0:00:07]} Kg6 {[%emt 0:00:31]} 55. gxf6 {[%emt 0:00:06]} Bxf6 {[%emt 0:00:07]} 56. Rg3+ {[%emt 0:00:38]} Kf5 {[%emt 0:00:05]} 57. Rf3+ {[%emt 0:00:26]} Ke6 {[%emt 0:00:04]} 58. Kg2 {[%emt 0:00:05]} Bd4 {[%emt 0:00:07]} 59. Bb6 {[%emt 0:00:13]} Rg1+ {[%emt 0:00:19]} 60. Kh2 {[%emt 0:00:02]} Rg6 {[%emt 0:00:12]} 61. Kh3 {[%emt 0:00:28]} Kd7 {[%emt 0:00:08]} 62. Ba7 {[%emt 0:00:06]} Kc6 {[%emt 0:00:11]} 63. Kh4 {[%emt 0:00:10]} Kb7 {[%emt 0:00:12]} 64. Rf7+ {[%emt 0:00:05]} Ka6 {[%emt 0:00:03]} 65. Bb8 {[%emt 0:00:19]} Ka5 {[%emt 0:00:04]} 66. Rb7 {[%emt 0:00:17]} Ka4 {[%emt 0:00:29]} 67. Ba7 {[%emt 0:00:15]} Re6 {[%emt 0:01:11]} 68. Rb5 {[%emt 0:00:13]} Re3 {[%emt 0:00:27]} 69. Bxc5 {[%emt 0:00:08]} Bxc5 {[%emt 0:00:03]} 70. Rxc5 {[%emt 0:00:03]} Rxd3 {[%emt 0:00:03]} 71. Rc8 {[%emt 0:00:39]} Rc3 {[%emt 0:00:10]} 72. c5 {[%emt 0:00:03]} Kb5 {[%emt 0:00:04]} 73. Rb8+ {[%emt 0:00:08]} Kxc5 {[%emt 0:00:03]} 74. Rc8+ {[%emt 0:00:01]} Kd4 {[%emt 0:00:05]} 1/2-1/2

[Event "African Online-ch O50-Seniors 2021"]
[Site "Online"]
[Date "2021.02.01"]
[Round "5.4"]
[White "Kpodo, Evans Mawuko"]
[Black "Fernandes, Luis De Pina"]
[Result "1-0"]
[ECO "D87"]
[WhiteElo "1654"]
[BlackElo "1601"]
[Annotator "NA RC"]
[PlyCount "69"]
[EventDate "2021.02.01"]
[EventType "swiss"]
[EventCountry "NET"]
[SourceTitle "playchess.com"]
[Source "ChessBase"]
[SourceQuality "1"]
[TimeControl "1500+10"]

1. d4 {[%emt 0:00:00]} Nf6 {[%emt 0:00:07]} 2. c4 {[%emt 0:00:04]} g6 {[%emt 0:00:08]} 3. Nc3 {[%emt 0:00:13]} d5 {[%emt 0:00:07]} 4. cxd5 {[%emt 0:00:05]} Nxd5 {[%emt 0:00:05]} 5. e4 {[%emt 0:00:02]} Nxc3 {[%emt 0:00:05]} 6. bxc3 {[%emt 0:00:02]} Bg7 {[%emt 0:00:03]} 7. Bc4 {[%emt 0:00:21]} c5 {[%emt 0:00:04]} 8. Ne2 {[%emt 0:00:04]} Nc6 {[%emt 0:01:46]} 9. Be3 {[%emt 0:02:03]} O-O {[%emt 0:01:56]} 10. Rb1 {[%emt 0:00:12]} Qa5 {[%emt 0:00:48]} 11. O-O {[%emt 0:00:07]} Rd8 {[%emt 0:02:11]} 12. Qb3 {[%emt 0:00:15]} e6 {[%emt 0:02:36]} 13. d5 {[%emt 0:01:25]} Ne5 {[%emt 0:00:07]} 14. dxe6 {[%emt 0:00:08]} fxe6 {[%emt 0:03:47]} 15. Bxe6+ {[%emt 0:00:05]} Bxe6 {[%emt 0:00:43]} 16. Qxe6+ {[%emt 0:00:06]} Kh8 {[%emt 0:00:15]} 17. Bh6 {[%emt 0:01:17]} Qc7 {[%emt 0:00:17]} 18. Bxg7+ {[%emt 0:00:12]} Qxg7 {[%emt 0:00:06]} 19. f4 {[%emt 0:01:39]} Nd3 {[%emt 0:00:38]} 20. f5 {[%emt 0:00:15]} Re8 {[%emt 0:00:17]} 21. f6 {[%emt 0:00:15]} Rxe6 {[%emt 0:01:17]} 22. fxg7+ {[%emt 0:00:05]} Kxg7 {[%emt 0:00:01]} 23. Rxb7+ {[%emt 0:00:04]} Kh6 {[%emt 0:00:16]} 24. Nf4 {[%emt 0:00:06]} Nxf4 {[%emt 0:00:28]} 25. Rxf4 {[%emt 0:00:05]} g5 {[%emt 0:00:10]} 26. Rff7 {[%emt 0:00:22]} Rxe4 {[%emt 0:00:16]} 27. Rxh7+ {[%emt 0:00:05]} Kg6 {[%emt 0:00:02]} 28. Rhg7+ {[%emt 0:00:20]} Kf5 {[%emt 0:00:02]} 29. Rbf7+ {[%emt 0:00:10]} Kg4 {[%emt 0:00:17]} 30. Rxa7 {[%emt 0:00:12]} Rf8 {[%emt 0:00:12]} 31. Rgf7 {[%emt 0:00:06]} Rd8 {[%emt 0:00:24]} 32. Rfd7 {[%emt 0:00:18]} Rf8 {[%emt 0:00:04]} 33. h3+ {[%emt 0:00:13]} Kg3 {[%emt 0:00:06]} 34. Rd3+ {[%emt 0:00:06]} Kf4 {[%emt 0:00:25]} 35. Rf3+ {[%emt 0:00:05]} 1-0

[Event "African Online-ch O50-Seniors 2021"]
[Site "Online"]
[Date "2021.02.01"]
[Round "6.2"]
[White "Fernandes, Luis De Pina"]
[Black "Mukabi, John"]
[Result "0-1"]
[ECO "C42"]
[WhiteElo "1601"]
[BlackElo "1820"]
[Annotator "NA RC"]
[PlyCount "60"]
[EventDate "2021.02.01"]
[EventType "swiss"]
[EventCountry "NET"]
[SourceTitle "playchess.com"]
[Source "ChessBase"]
[SourceQuality "1"]
[TimeControl "1500+10"]

1. e4 {[%emt 0:00:00]} e5 {[%emt 0:00:10]} 2. Nf3 {[%emt 0:00:08]} Nf6 {[%emt 0:00:07]} 3. Nxe5 {[%emt 0:00:27]} d6 {[%emt 0:00:05]} 4. Nf3 {[%emt 0:00:04]} Nxe4 {[%emt 0:00:06]} 5. Qe2 {[%emt 0:00:06]} Qe7 {[%emt 0:00:09]} 6. d3 {[%emt 0:00:04]} Nf6 {[%emt 0:00:07]} 7. Bg5 {[%emt 0:00:22]} Qxe2+ {[%emt 0:00:14]} 8. Bxe2 {[%emt 0:00:05]} Be7 {[%emt 0:00:07]} 9. O-O {[%emt 0:00:11]} O-O {[%emt 0:00:07]} 10. Re1 {[%emt 0:00:06]} Nc6 {[%emt 0:00:09]} 11. Nc3 {[%emt 0:02:05]} Bg4 {[%emt 0:01:14]} 12. h3 {[%emt 0:00:42]} Bh5 {[%emt 0:00:23]} 13. Nd2 {[%emt 0:06:56]} Bg6 {[%emt 0:01:54]} 14. Bf3 {[%emt 0:00:21]} Rfe8 {[%emt 0:00:18]} 15. Bxc6 {[%emt 0:01:01]} bxc6 {[%emt 0:00:06]} 16. Re2 {[%emt 0:00:58]} Bd8 {[%emt 0:03:18]} 17. Rae1 {[%emt 0:00:45]} Rxe2 {[%emt 0:00:57]} 18. Rxe2 {[%emt 0:00:03]} Kf8 {[%emt 0:00:11]} 19. Nde4 {[%emt 0:02:19]} Nxe4 {[%emt 0:00:20]} 20. Bxd8 {[%emt 0:00:25]} Nxc3 {[%emt 0:04:26]} 21. Be7+ {[%emt 0:00:05]} Kg8 {[%emt 0:00:09]} 22. bxc3 {[%emt 0:00:05]} f6 {[%emt 0:00:06]} 23. g4 {[%emt 0:00:23]} Kf7 {[%emt 0:00:08]} 24. g5 {[%emt 0:00:13]} Re8 {[%emt 0:00:11]} 25. gxf6 {[%emt 0:00:07]} gxf6 {[%emt 0:00:06]} 26. Re1 {[%emt 0:02:18]} Rxe7 {[%emt 0:00:15]} 27. Rb1 {[%emt 0:00:04]} Bf5 {[%emt 0:03:35]} 28. h4 {[%emt 0:00:27]} Bc8 {[%emt 0:00:17]} 29. Rb8 {[%emt 0:00:08]} Re8 {[%emt 0:00:18]} 30. Kf1 {[%emt 0:02:05]} Bh3+ {[%emt 0:00:10]} 0-1

[Event "African Online-ch O50-Seniors 2021"]
[Site "Online"]
[Date "2021.02.01"]
[Round "6.3"]
[White "Molapo, Joang"]
[Black "Kpodo, Evans Mawuko"]
[Result "1/2-1/2"]
[ECO "E13"]
[WhiteElo "1607"]
[BlackElo "1654"]
[Annotator "NA RC"]
[PlyCount "169"]
[EventDate "2021.02.01"]
[EventType "swiss"]
[EventCountry "NET"]
[SourceTitle "playchess.com"]
[Source "ChessBase"]
[SourceQuality "1"]
[TimeControl "1500+10"]

1. d4 {[%emt 0:00:10]} Nf6 {[%emt 0:00:32]} 2. c4 {[%emt 0:00:05]} e6 {[%emt 0:00:16]} 3. Nf3 {[%emt 0:00:09]} Bb4+ {[%emt 0:00:09]} 4. Nc3 {[%emt 0:00:06]} c5 {[%emt 0:00:07]} 5. e3 {[%emt 0:00:04]} cxd4 {[%emt 0:00:15]} 6. exd4 {[%emt 0:00:04]} O-O {[%emt 0:00:30]} 7. Be2 {[%emt 0:00:11]} b6 {[%emt 0:00:09]} 8. O-O {[%emt 0:00:05]} Bb7 {[%emt 0:00:02]} 9. Bg5 {[%emt 0:00:06]} h6 {[%emt 0:00:10]} 10. Bh4 {[%emt 0:00:05]} Be7 {[%emt 0:00:03]} 11. d5 {[%emt 0:00:26]} d6 {[%emt 0:01:02]} 12. dxe6 {[%emt 0:00:19]} fxe6 {[%emt 0:00:05]} 13. Nd4 {[%emt 0:00:06]} Qc8 {[%emt 0:02:15]} 14. Rc1 {[%emt 0:02:03]} Re8 {[%emt 0:00:30]} 15. Ndb5 {[%emt 0:02:11]} Rd8 {[%emt 0:01:05]} 16. Re1 {[%emt 0:00:09]} a6 {[%emt 0:00:09]} 17. Nd4 {[%emt 0:00:08]} e5 {[%emt 0:00:07]} 18. Bxf6 {[%emt 0:00:17]} Bxf6 {[%emt 0:00:04]} 19. Bg4 {[%emt 0:00:05]} Nd7 {[%emt 0:01:45]} 20. Ne6 {[%emt 0:00:41]} Re8 {[%emt 0:00:12]} 21. Qxd6 {[%emt 0:00:08]} Qxc4 {[%emt 0:01:41]} 22. Nc7 {[%emt 0:00:18]} Qxg4 {[%emt 0:00:08]} 23. N3d5 {[%emt 0:00:40]} Bxd5 {[%emt 0:02:23]} 24. Qxd5+ {[%emt 0:00:05]} Kh8 {[%emt 0:00:44]} 25. Nxa8 {[%emt 0:00:37]} e4 {[%emt 0:00:08]} 26. Nc7 {[%emt 0:00:15]} Ne5 {[%emt 0:00:04]} 27. Qxe4 {[%emt 0:00:15]} Qxe4 {[%emt 0:03:47]} 28. Rxe4 {[%emt 0:00:07]} Rc8 {[%emt 0:00:06]} 29. Rc2 {[%emt 0:01:02]} Bd8 {[%emt 0:00:20]} 30. Rxe5 {[%emt 0:00:07]} Bxc7 {[%emt 0:00:13]} 31. Ree2 {[%emt 0:00:13]} Rd8 {[%emt 0:00:19]} 32. g3 {[%emt 0:00:06]} Rd7 {[%emt 0:00:15]} 33. Re6 {[%emt 0:00:07]} Kh7 {[%emt 0:00:17]} 34. f4 {[%emt 0:00:25]} Bd8 {[%emt 0:00:24]} 35. Kf2 {[%emt 0:00:19]} Bf6 {[%emt 0:00:07]} 36. Ke3 {[%emt 0:00:26]} Bd4+ {[%emt 0:00:06]} 37. Ke4 {[%emt 0:00:06]} Bc5 {[%emt 0:00:05]} 38. a3 {[%emt 0:00:08]} a5 {[%emt 0:00:05]} 39. b4 {[%emt 0:00:56]} axb4 {[%emt 0:00:07]} 40. axb4 {[%emt 0:00:05]} Rd4+ {[%emt 0:00:03]} 41. Ke5 {[%emt 0:00:05]} Rxb4 {[%emt 0:00:09]} 42. Kd5 {[%emt 0:00:09]} Rd4+ {[%emt 0:00:08]} 43. Kc6 {[%emt 0:00:04]} Rd8 {[%emt 0:00:17]} 44. Rce2 {[%emt 0:00:28]} Rc8+ {[%emt 0:00:11]} 45. Kb5 {[%emt 0:00:32]} Ra8 {[%emt 0:00:10]} 46. f5 {[%emt 0:00:39]} Bd4 {[%emt 0:00:15]} 47. R2e4 {[%emt 0:00:54]} Bg1 {[%emt 0:00:17]} 48. h3 {[%emt 0:00:09]} Ra5+ {[%emt 0:00:06]} 49. Kc6 {[%emt 0:00:08]} Rxf5 {[%emt 0:00:06]} 50. Rg4 {[%emt 0:00:22]} Rc5+ {[%emt 0:00:11]} 51. Kb7 {[%emt 0:00:06]} Rd5 {[%emt 0:00:46]} 52. Re7 {[%emt 0:00:14]} Bd4 {[%emt 0:00:05]} 53. h4 {[%emt 0:00:13]} b5 {[%emt 0:00:04]} 54. Kc6 {[%emt 0:00:25]} Bf6 {[%emt 0:01:20]} 55. Kxd5 {[%emt 0:00:09]} Bxe7 {[%emt 0:00:05]} 56. Ke6 {[%emt 0:00:08]} Ba3 {[%emt 0:00:13]} 57. Kd5 {[%emt 0:00:08]} Be7 {[%emt 0:00:33]} 58. Re4 {[%emt 0:00:09]} Ba3 {[%emt 0:00:41]} 59. Re3 {[%emt 0:00:04]} b4 {[%emt 0:00:09]} 60. Rb3 {[%emt 0:00:04]} Kg6 {[%emt 0:00:14]} 61. Ke4 {[%emt 0:00:11]} Kh5 {[%emt 0:00:06]} 62. Kf5 {[%emt 0:00:06]} g6+ {[%emt 0:00:14]} 63. Kf6 {[%emt 0:00:13]} g5 {[%emt 0:00:06]} 64. hxg5 {[%emt 0:00:05]} hxg5 {[%emt 0:00:03]} 65. Kf5 {[%emt 0:00:04]} Kh6 {[%emt 0:00:29]} 66. g4 {[%emt 0:00:06]} Bc1 {[%emt 0:00:14]} 67. Rxb4 {[%emt 0:00:06]} Kg7 {[%emt 0:00:05]} 68. Rc4 {[%emt 0:00:10]} Bd2 {[%emt 0:00:07]} 69. Rc6 {[%emt 0:00:13]} Kf7 {[%emt 0:00:13]} 70. Rc7+ {[%emt 0:00:06]} Ke8 {[%emt 0:00:08]} 71. Kg6 {[%emt 0:00:19]} Kf8 {[%emt 0:00:13]} 72. Rc5 {[%emt 0:00:17]} Be3 {[%emt 0:00:05]} 73. Rxg5 {[%emt 0:00:15]} Bxg5 {[%emt 0:00:05]} 74. Kxg5 {[%emt 0:00:03]} Kg7 {[%emt 0:00:05]} 75. Kf5 {[%emt 0:00:04]} Kf7 {[%emt 0:00:03]} 76. Ke4 {[%emt 0:00:10]} Kg6 {[%emt 0:00:10]} 77. Kf4 {[%emt 0:00:04]} Kf6 {[%emt 0:00:02]} 78. g5+ {[%emt 0:00:06]} Kg6 {[%emt 0:00:04]} 79. Kg4 {[%emt 0:00:03]} Kg7 {[%emt 0:00:08]} 80. Kh5 {[%emt 0:00:04]} Kh7 {[%emt 0:00:02]} 81. g6+ {[%emt 0:00:04]} Kg7 {[%emt 0:00:05]} 82. Kg5 {[%emt 0:00:05]} Kg8 {[%emt 0:00:16]} 83. Kh6 {[%emt 0:00:07]} Kh8 {[%emt 0:00:03]} 84. g7+ {[%emt 0:00:04]} Kg8 {[%emt 0:00:03]} 85. Kg6 {[%emt 0:00:06]} 1/2-1/2